fUSD/lending_fUSD_20250906
["ID","MTS","AMOUNT","RATE_DAILY","PERIOD"]
[383898654,1757167837532,-1104.3,0.00036558,2]
[383898655,1757167837545,-1015.90114948,0.00036558,2]
[383898656,1757167837558,-2559.26893152,0.00036614,35]
[383898657,1757167837583,-500.54291884,0.00036614,35]
[383898658,1757167837634,-1259.3,0.00036614,35]
[383898659,1757167837647,-359.49065149,0.00036614,35]
[383898660,1757167837657,-41.92823205,0.00036619,2]
[383898661,1757167837669,-108.07176795,0.00036619,2]
[383898662,1757167837678,-666.0,0.00036753,3]
[383898663,1757167837688,-144.43848384,0.000369,13]
[383898664,1757167837699,-155.56151616,0.000369,13]
[383898665,1757167837709,-730.476,0.00036905,46]
[383898666,1757167837719,-39.53420884,0.00036909,2]
[383898667,1757167837730,-123.11579116,0.00036909,2]
[383898668,1757167837739,-333.38421276,0.00037,13]
[383898676,1757167839544,-366.61578724,0.00037,13]
[383898677,1757167839554,-1100.0,0.000371,13]
[383898678,1757167839564,-1500.0,0.000372,13]
[383898679,1757167839574,-1198.49885099,0.000373,13]
[383898680,1757167839585,-601.50114901,0.000373,13]
[383898681,1757167839595,-299.69,0.0003736,2]
[383898682,1757167839604,-1030.39239876,0.0003737,2]
[383898683,1757167839616,-180.79760124,0.0003737,2]
[383898684,1757167839625,-623.72319559,0.0003739,2]
[383898685,1757167839635,-2000.0,0.000374,2]
[383898686,1757167839644,-300.0,0.000374,13]
[383898687,1757167839655,-300.0,0.000375,13]
[383898688,1757167839664,-200.0,0.00037561,2]
[383898689,1757167839673,-322.6107,0.00037561,2]
[383898690,1757167839683,-151.0,0.00037561,2]
[383898691,1757167839692,-151.0,0.00037561,2]
[383898692,1757167839702,-151.0,0.00037561,2]
[383898693,1757167839711,-151.0,0.00037561,2]
[383898694,1757167839721,-151.0,0.00037561,2]
[383898695,1757167839731,-151.0,0.00037561,2]
[383898696,1757167839740,-151.0,0.00037561,2]
[383898697,1757167839750,-151.0,0.00037561,2]
[383898698,1757167839759,-151.0,0.00037561,2]
[383898699,1757167839769,-151.0,0.00037561,2]
[383898700,1757167839779,-151.0,0.00037561,2]
[383898701,1757167839788,-151.0,0.00037561,2]
[383898702,1757167839798,-114.28173906,0.00037561,2]
[383898703,1757167839810,-85.71826094,0.00037561,2]
[383898704,1757167839819,-200.0,0.00037561,2]
[383898705,1757167839829,-151.0,0.00037561,2]
[383898706,1757167839838,-151.0,0.00037561,2]
[383898707,1757167839847,-151.0,0.00037561,2]
[383898708,1757167839857,-600.0,0.00037561,2]
[383898709,1757167839866,-151.0,0.00037561,2]
[383898710,1757167839876,-512.67033169,0.00037561,2]
[383898711,1757167839886,-151.0,0.00037561,2]
[383898712,1757167839897,-500.0,0.00037561,2]
[383898713,1757167839907,-276.26777575,0.00037561,2]
[383898714,1757167839916,-150.0,0.00037584,2]
[383898715,1757167839926,-150.0,0.00037584,2]
[383898716,1757167839935,-249.9372983,0.00037584,2]
[383898717,1757167839947,-250.0627017,0.00037584,2]
[383898718,1757167839957,-500.0,0.00037584,2]
[383898719,1757167839967,-150.0,0.00037584,2]
[383898720,1757167839976,-150.84350732,0.00037584,2]
[383898721,1757167839986,-150.0,0.00037584,2]
[383898722,1757167839995,-150.0,0.00037584,2]
[383898723,1757167840005,-150.0,0.00037584,2]
[383898724,1757167840015,-500.0,0.00037584,2]
[383898725,1757167840024,-150.0,0.00037584,2]
[383898726,1757167840034,-79.88724391,0.00037584,2]
[383898727,1757167840054,-420.11275609,0.00037584,2]
[383898728,1757167840064,-150.0,0.00037584,2]
[383898729,1757167840074,-46.92885491,0.00037584,2]
[383898730,1757167840086,-103.07114509,0.00037584,2]
[383898731,1757167840095,-150.0,0.00037584,2]
[383898732,1757167840107,-82.30885491,0.00037584,2]
[383898733,1757167840118,-67.69114509,0.00037584,2]
[383898734,1757167840128,-150.0,0.00037584,2]
[383898735,1757167840137,-500.0,0.00037584,2]
[383898736,1757167840147,-150.0,0.00037584,2]
[383898737,1757167840157,-150.0,0.00037584,2]
[383898738,1757167840166,-500.0,0.00037584,2]
[383898739,1757167840176,-500.0,0.00037584,2]
[383898740,1757167840185,-300.0,0.000376,13]
[383898741,1757167840195,-500.0,0.00037616,2]
[383898742,1757167840203,-500.0,0.00037671,2]
[383898743,1757167840213,-2223.59,0.000377,14]
[383898744,1757167840223,-300.0,0.000377,13]
[383898745,1757167840232,-500.0,0.00037726,2]
[383898746,1757167840242,-623.72319559,0.00037728,2]
[383898747,1757167840251,-378.0,0.00037742,7]
[383898748,1757167840261,-172.59,0.0003776,60]
[383898749,1757167840271,-200.6,0.0003776,60]
[383898750,1757167840280,-500.0,0.00037781,2]
[383898751,1757167840290,-900.0,0.000378,13]
[383898752,1757167840300,-277.35679052,0.00037808,2]
[383898753,1757167840310,-150.0,0.00037858,2]
[383898754,1757167840319,-500.0,0.00037858,2]
[383898755,1757167840329,-500.0,0.00037858,2]
[383898756,1757167840339,-500.0,0.00037858,2]
[383898757,1757167840349,-150.0,0.00037858,2]
[383898758,1757167840359,-555.32,0.00037858,2]
[383898759,1757167840370,-200.0,0.00037858,2]
[383898760,1757167840382,-200.0,0.00037858,2]
[383898761,1757167840391,-150.0,0.00037858,2]
[383898762,1757167840401,-150.0,0.00037858,2]
[383898763,1757167840410,-500.0,0.00037858,2]
[383898764,1757167840420,-150.0,0.00037858,2]
[383898765,1757167840429,-500.0,0.00037858,2]
[383898766,1757167840439,-500.0,0.00037858,2]
[383898767,1757167840448,-173.55206,0.0003794,2]
[383898768,1757167840457,-500.0,0.00037973,5]
[383898769,1757167840467,-500.0,0.00037973,5]
[383898770,1757167840477,-501.32193744,0.00037973,5]
[383898771,1757167840488,-500.0,0.00037973,5]
[383898772,1757167840498,-500.0,0.00037973,2]
[383898773,1757167840507,-500.0,0.00037973,5]
[383898774,1757167840517,-40000.0,0.00038,120]
[383898775,1757167840527,-156.0,0.00038,120]
[383898776,1757167840536,-168.0,0.00038,120]
[383898777,1757167840545,-623.72319561,0.00038016,2]
[383898778,1757167840555,-1440.45189276,0.0003802,16]
[383898779,1757167840564,-200.0,0.00038109,2]
[383898780,1757167840574,-231.7389,0.00038119,2]
[383898781,1757167840583,-8041.08339427,0.00038129,2]
[383898782,1757167840592,-200.0,0.00038132,2]
[383898783,1757167840601,-500.0,0.00038132,2]
[383898784,1757167840611,-500.0,0.00038132,2]
[383898785,1757167840619,-200.0,0.00038132,2]
[383898786,1757167840628,-150.0,0.00038132,2]
[383898787,1757167840637,-150.0,0.00038132,2]
[383898788,1757167840645,-500.0,0.00038132,2]
[383898789,1757167840655,-200.0,0.00038132,2]
[383898790,1757167840664,-500.0,0.00038132,2]
[383898791,1757167840674,-299.53111718,0.00038132,2]
[383898792,1757167840683,-8041.08339427,0.00038139,2]
[383898793,1757167840693,-8041.08339427,0.00038149,2]
[383898794,1757167840702,-173.55206,0.0003815,2]
[383898795,1757167840711,-8041.08339427,0.00038159,2]
[383898796,1757167840721,-8041.08339427,0.00038169,2]
[383898797,1757167840731,-8041.08339427,0.0003818,2]
[383898798,1757167840740,-8041.08339427,0.0003819,2]
[383898799,1757167840750,-8041.08339427,0.000382,2]
[383898800,1757167840759,-1425.0,0.00038201,2]
[383898801,1757167840769,-150.0,0.00038204,2]
[383898802,1757167840779,-8041.08339427,0.0003821,2]
[383898803,1757167840788,-163.36158708,0.00038219,2]
[383898804,1757167840797,-1261.29170295,0.00038219,4]
[383898805,1757167840807,-1261.29170296,0.00038219,4]
[383898806,1757167840816,-1000.0,0.00038219,2]
[383898807,1757167840823,-200.8875943,0.0003822,7]
[383898808,1757167840832,-36844.00955543,0.0003822,2]
[383898809,1757167840840,-6039.52733104,0.0003822,2]
[383898810,1757167840849,-268.72557102,0.0003822,13]
[383898811,1757167840858,-163.36158708,0.0003822,2]
[383898812,1757167840867,-2431.95502912,0.00038221,2]
[383898813,1757167840876,-565.81191881,0.00038221,2]
[383898814,1757167840885,-9013.30281969,0.00038221,2]
[383898815,1757167840893,-152.0,0.00038229,30]
[383898816,1757167840901,-152.0,0.00038229,30]
[383898817,1757167840911,-152.0,0.00038229,30]
[383898818,1757167840921,-258.46724408,0.00038229,30]
[383898819,1757167840930,-173.59189117,0.00038273,5]
[383898820,1757167840940,-500.0,0.00038273,5]
[383898821,1757167840949,-500.0,0.00038273,5]
[383898822,1757167840959,-500.0,0.00038273,5]
[383898823,1757167840969,-5800.0,0.00038275,2]
[383898824,1757167840978,-500.0,0.00038281,2]
[383898825,1757167840988,-5800.0,0.00038283,2]
[383898826,1757167840998,-5800.0,0.00038292,2]
[383898827,1757167841007,-150.0,0.00038296,2]
[383898828,1757167841016,-150.0,0.00038296,2]
[383898829,1757167841026,-150.0,0.00038296,2]
[383898830,1757167841036,-150.0,0.00038296,2]
[383898831,1757167841250,-150.0,0.00038296,2]
[383898832,1757167841259,-500.0,0.00038296,2]
[383898833,1757167841270,-500.0,0.00038296,2]
[383898834,1757167841279,-500.0,0.00038296,2]
[383898835,1757167841288,-260.0,0.000383,3]
[383898836,1757167841298,-5800.0,0.000383,2]
[383898837,1757167841309,-629.19418472,0.000383,7]
[383898838,1757167841320,-151.58,0.0003831,2]
[383898839,1757167841330,-151.58,0.0003831,2]
[383898840,1757167841339,-151.58,0.0003831,2]
[383898841,1757167841349,-151.58,0.0003831,2]
[383898842,1757167841359,-151.58,0.0003831,2]
[383898843,1757167841369,-151.58,0.0003831,2]
[383898844,1757167841378,-151.58,0.0003831,2]
[383898845,1757167841388,-151.58,0.0003831,2]
[383898846,1757167841398,-151.58,0.0003831,2]
[383898847,1757167841408,-151.58,0.0003831,2]
[383898848,1757167841418,-151.58,0.0003831,2]
[383898849,1757167841428,-151.58,0.0003831,2]
[383898850,1757167841438,-241.42347104,0.0003831,2]
[383898851,1757167841448,-221.034,0.00038317,14]
[383898852,1757167841459,-300.0,0.00038318,10]
[383898853,1757167841472,-300.0,0.00038318,10]
[383898854,1757167841481,-300.0,0.00038318,10]
[383898855,1757167841490,-3134.1312455,0.00038318,2]
[383898856,1757167841498,-1264.1567381,0.00038318,2]
[383898857,1757167841509,-8285.5767497,0.00038318,2]
[383898858,1757167841518,-30359.3026897,0.00038318,2]
[383898859,1757167841527,-150.0,0.00038318,20]
[383898860,1757167841539,-297.87657542,0.00038318,15]
[383898861,1757167841551,-323.29256878,0.00038318,15]
[383898862,1757167841562,-2954.30967776,0.00038319,50]
[383898863,1757167841571,-359.68174267,0.00038319,5]
[383898864,1757167841581,-152.0,0.00038319,30]
[383898865,1757167841590,-152.0,0.00038319,30]
[383898866,1757167841599,-546.0,0.00038319,30]
[383898867,1757167841608,-152.0,0.00038319,30]
[383898868,1757167841618,-1224.0,0.00038319,30]
[383898869,1757167841627,-152.0,0.00038319,30]
[383898870,1757167841637,-546.0,0.00038319,30]
[383898871,1757167841647,-1224.0,0.00038319,30]
[383898872,1757167841656,-157.7458438,0.00038319,30]
[383898873,1757167841665,-152.0,0.00038319,30]
[383898874,1757167841675,-546.0,0.00038319,30]
[383898875,1757167841685,-1224.0,0.00038319,30]
[383898876,1757167841694,-152.0,0.00038319,30]
[383898877,1757167841703,-189.18567382,0.00038319,30]
[383898878,1757167841712,-1224.0,0.00038319,30]
[383898879,1757167841722,-152.0,0.00038319,30]
[383898880,1757167841731,-546.0,0.00038319,30]
[383898881,1757167841740,-152.0,0.00038319,30]
[383898882,1757167841750,-1224.0,0.00038319,30]
[383898883,1757167841760,-546.0,0.00038319,30]
[383898884,1757167841769,-152.0,0.00038319,30]
[383898885,1757167841779,-1224.0,0.00038319,30]
[383898886,1757167841789,-546.0,0.00038319,30]
[383898887,1757167841798,-152.0,0.00038319,30]
[383898888,1757167841808,-1224.0,0.00038319,30]
[383898889,1757167841817,-294.84570016,0.00038319,30]
[383898890,1757167841826,-152.0,0.00038319,30]
[383898891,1757167841834,-546.0,0.00038319,30]
[383898892,1757167841843,-152.0,0.00038319,30]
[383898893,1757167841852,-152.0,0.00038319,30]
[383898894,1757167841862,-546.0,0.00038319,30]
[383898895,1757167841871,-152.0,0.00038319,30]
[383898896,1757167841880,-546.0,0.00038319,30]
[383898897,1757167841890,-152.0,0.00038319,30]
[383898898,1757167841900,-546.0,0.00038319,30]
[383898899,1757167841909,-152.0,0.00038319,30]
[383898900,1757167841920,-152.0,0.00038319,30]
[383898901,1757167841930,-546.0,0.00038319,30]
[383898902,1757167841941,-152.0,0.00038319,30]
[383898903,1757167841950,-152.0,0.00038319,30]
[383898904,1757167841961,-152.0,0.00038319,30]
[383898905,1757167841972,-546.0,0.00038319,30]
[383898906,1757167841982,-546.0,0.00038319,30]
[383898907,1757167841992,-152.0,0.00038319,30]
[383898908,1757167842002,-546.0,0.00038319,30]
[383898909,1757167842011,-221.55553866,0.00038319,30]
[383898910,1757167842021,-546.0,0.00038319,30]
[383898911,1757167842031,-546.0,0.00038319,30]
[383898912,1757167842041,-546.0,0.00038319,30]
[383898913,1757167842052,-154.0,0.00038319,30]
[383898914,1757167842064,-546.0,0.00038319,30]
[383898915,1757167842074,-154.0,0.00038319,30]
[383898916,1757167842083,-546.0,0.00038319,30]
[383898917,1757167842093,-154.0,0.00038319,30]
[383898918,1757167842103,-546.0,0.00038319,30]
[383898919,1757167842113,-154.0,0.00038319,30]
[383898920,1757167842122,-546.0,0.00038319,30]
[383898921,1757167842131,-154.0,0.00038319,30]
[383898922,1757167842141,-546.0,0.00038319,30]
[383898923,1757167842150,-154.0,0.00038319,30]
[383898924,1757167842160,-546.0,0.00038319,30]
[383898925,1757167842170,-154.0,0.00038319,30]
[383898926,1757167842179,-546.0,0.00038319,30]
[383898927,1757167842189,-206.58494233,0.00038319,30]
[383898928,1757167842199,-546.0,0.00038319,30]
[383898929,1757167842208,-546.0,0.00038319,30]
[383898930,1757167842217,-546.0,0.00038319,30]
[383898931,1757167842227,-546.0,0.00038319,30]
[383898932,1757167842237,-546.0,0.00038319,30]
[383898933,1757167842247,-546.0,0.00038319,30]
[383898934,1757167842256,-546.0,0.00038319,30]
[383898935,1757167842266,-546.0,0.00038319,30]
[383898936,1757167842276,-546.0,0.00038319,30]
[383898937,1757167842287,-546.0,0.00038319,30]
[383898938,1757167842297,-546.0,0.00038319,30]
[383898939,1757167842306,-546.0,0.00038319,30]
[383898940,1757167842317,-546.0,0.00038319,30]
[383898941,1757167842328,-546.0,0.00038319,30]
[383898942,1757167842338,-546.0,0.00038319,30]
[383898943,1757167842347,-546.0,0.00038319,30]
[383898944,1757167842357,-546.0,0.00038319,30]
[383898945,1757167842367,-546.0,0.00038319,30]
[383898946,1757167842377,-546.0,0.00038319,30]
[383898947,1757167842388,-546.0,0.00038319,30]
[383898948,1757167842397,-546.0,0.00038319,30]
[383898949,1757167842407,-546.0,0.00038319,30]
[383898951,1757167842417,-546.0,0.00038319,30]
[383898952,1757167842426,-546.0,0.00038319,30]
[383898953,1757167842436,-546.0,0.00038319,30]
[383898954,1757167842447,-546.0,0.00038319,30]
[383898955,1757167842456,-546.0,0.00038319,30]
[383898956,1757167842466,-546.0,0.00038319,30]
[383898957,1757167842476,-546.0,0.00038319,30]
[383898958,1757167842486,-546.0,0.00038319,30]
[383898959,1757167842496,-546.0,0.00038319,30]
[383898960,1757167842505,-546.0,0.00038319,30]
[383898961,1757167842515,-546.0,0.00038319,30]
[383898962,1757167842525,-546.0,0.00038319,30]
[383898963,1757167842534,-546.0,0.00038319,30]
[383898965,1757167842543,-546.0,0.00038319,30]
[383898966,1757167842553,-546.0,0.00038319,30]
[383898967,1757167842563,-546.0,0.00038319,30]
[383898968,1757167842572,-546.0,0.00038319,30]
[383898970,1757167842582,-546.0,0.00038319,30]
[383898971,1757167842592,-546.0,0.00038319,30]
[383898972,1757167842601,-546.0,0.00038319,30]
[383898973,1757167842610,-546.0,0.00038319,30]
[383898974,1757167842618,-546.0,0.00038319,30]
[383898975,1757167842627,-546.0,0.00038319,30]
[383898976,1757167842637,-546.0,0.00038319,30]
[383898977,1757167842646,-546.0,0.00038319,30]
[383898978,1757167842654,-546.0,0.00038319,30]
[383898979,1757167842663,-546.0,0.00038319,30]
[383898980,1757167842673,-546.0,0.00038319,30]
[383898981,1757167842682,-546.0,0.00038319,30]
[383898982,1757167842691,-546.0,0.00038319,30]
[383898983,1757167842701,-546.0,0.00038319,30]
[383898984,1757167842711,-546.0,0.00038319,30]
[383898985,1757167842721,-546.0,0.00038319,30]
[383898986,1757167842731,-546.0,0.00038319,30]
[383898987,1757167842741,-546.0,0.00038319,30]
[383898988,1757167842751,-546.0,0.00038319,30]
[383898989,1757167842760,-546.0,0.00038319,30]
[383898990,1757167842770,-546.0,0.00038319,30]
[383898991,1757167842779,-546.0,0.00038319,30]
[383898992,1757167842789,-546.0,0.00038319,30]
[383898993,1757167842798,-546.0,0.00038319,30]
[383898994,1757167842808,-546.0,0.00038319,30]
[383898995,1757167842818,-546.0,0.00038319,30]
[383898996,1757167842828,-546.0,0.00038319,30]
[383898997,1757167842837,-546.0,0.00038319,30]
[383898998,1757167842847,-546.0,0.00038319,30]
[383898999,1757167842857,-219.62646551,0.00038319,30]
[383899000,1757167842867,-155.0,0.00038319,30]
[383899001,1757167842876,-153.0,0.00038319,30]
[383899002,1757167842887,-153.0,0.00038319,30]
[383899003,1757167842898,-153.0,0.00038319,30]
[383899004,1757167842909,-153.0,0.00038319,30]
[383899005,1757167842920,-158.09129496,0.00038319,30]
[383899006,1757167842930,-154.0,0.00038319,30]
[383899007,1757167842940,-814.32267026,0.00038319,2]
[383899008,1757167842951,-173.55206,0.00038319,2]
[383899009,1757167842961,-400.22589022,0.00038319,15]
[383899010,1757167842971,-500.0,0.00038319,15]
[383899011,1757167842980,-500.0,0.00038319,15]
[383899012,1757167842990,-195.04534264,0.00038319,15]
[383899013,1757167842999,-254.34932716,0.00038319,15]
[383899014,1757167843009,-411.33388276,0.00038319,15]
[383899016,1757167843019,-282.82600627,0.00038319,50]
[383899018,1757167843028,-311.80857969,0.0003832,2]
[383899020,1757167843038,-5728572.02892551,0.0003832,30]
[383899032,1757167843899,-3687.47299875,0.0003832,30]
[383899033,1757167843943,-8881.59428922,0.0003832,30]
[383899034,1757167844498,-3031.70024719,0.0003832,30]
[383899035,1757167844699,-97.73145885,0.0003832,30]
[383899036,1757167844715,-445.0062,0.0003832,30]
[383899039,1757167845622,-1796.57516989,0.0003822,2]
[383899040,1757167845895,-6244.50822438,0.0003822,2]
[383899041,1757167845904,-443.64284402,0.0003832,2]
[383899042,1757167845914,-814.32267027,0.0003832,2]
[383899043,1757167845923,-2776.07272161,0.0003832,30]
[383899044,1757167845943,-43703.07841976,0.0003832,30]
[383899052,1757167916858,536.48764495,0.000249,2]
[383899053,1757167916971,536.48764491,0.00027827,8]
[383899083,1757168227995,500.0,0.0002739,120]
[383899192,1757168608815,164.83,0.0001833,2]
[383899213,1757168757087,-1453.79592628,0.0002,2]
[383899232,1757168801640,1077.63734681,0.00019999,5]
[383899237,1757168824436,400.0,0.000197,7]
[383899238,1757168825016,1147.70107937,0.00019999,5]
[383899239,1757168825084,1147.70107937,0.00019999,5]
[383899240,1757168825164,1147.70107936,0.00019999,5]
[383899241,1757168826090,-177.58225072,0.00019998,2]
[383899242,1757168826540,900.0,0.000198,7]
[383899243,1757168827079,-462.41774928,0.00019998,2]
[383899244,1757168827100,-365.6275473,0.00019999,2]
[383899245,1757168827123,-23.80402277,0.00019999,2]
[383899246,1757168828940,1400.0,0.000199,7]
[383899248,1757168836342,1054.49050297,0.00019999,5]
[383899250,1757168843116,-256.34566423,0.00019973,2]
[383899251,1757168848101,-161.65433577,0.00019973,2]
[383899252,1757168848122,-1200.0,0.00019998,2]
[383899253,1757168848143,-175.28075773,0.00019998,2]
[383899255,1757168865999,618.75066019,0.0002,5]
[383899265,1757168901498,1000.0,0.000194,7]
[383899266,1757168903607,2100.0,0.000195,7]
[383899267,1757168906216,3200.0,0.000196,7]
[383899268,1757168908276,4300.0,0.000197,7]
[383899270,1757168910316,5300.0,0.000198,7]
[383899271,1757168912544,1000.0,0.000199,7]
[383899272,1757168915074,2873.29892187,0.0002,7]
[383899275,1757168920882,351.12035399,0.0001901,7]
[383899283,1757168936528,900.0,0.000194,7]
[383899284,1757168938673,1800.0,0.000195,7]
[383899285,1757168940778,2800.0,0.000196,7]
[383899287,1757168942882,3700.0,0.000197,7]
[383899288,1757168944977,4700.0,0.000198,7]
[383899290,1757168947090,-3292.714996,0.00019799,2]
[383899291,1757168947111,-158.15903737,0.00019899,2]
[383899292,1757168947133,-413.57704499,0.000199,2]
[383899293,1757168947154,-2812.99994538,0.000199,2]
[383899294,1757168947176,-300.0,0.00019961,2]
[383899295,1757168947197,-2812.99994531,0.00019962,2]
[383899296,1757168947217,-500.0,0.00019973,2]
[383899297,1757168947239,-500.0,0.00019973,2]
[383899298,1757168947261,-124.71924227,0.00019998,2]
[383899299,1757168947283,-946.01689503,0.00019999,2]
[383899300,1757168947304,-234.45919298,0.00019999,2]
[383899301,1757168947325,-500.0,0.00019999,2]
[383899302,1757168947351,-329.68228094,0.00019999,2]
[383899303,1757168947372,-500.0,0.00019999,2]
[383899304,1757168947393,-523.43357043,0.00019999,2]
[383899305,1757168947414,-500.0,0.00019999,2]
[383899306,1757168947440,-500.0,0.00019999,2]
[383899307,1757168947463,-500.0,0.00019999,2]
[383899308,1757168947484,-545.54518794,0.00019999,2]
[383899309,1757168947508,-500.0,0.00019999,2]
[383899310,1757168947530,-337.30866973,0.00019999,2]
[383899311,1757168947551,-595.69033343,0.00019999,2]
[383899312,1757168947577,-500.0,0.00019999,2]
[383899313,1757168947603,-500.0,0.00019999,2]
[383899314,1757168947626,-500.0,0.00019999,2]
[383899315,1757168947651,-500.0,0.00019999,2]
[383899316,1757168947676,-500.0,0.00019999,2]
[383899317,1757168947700,-500.0,0.00019999,2]
[383899318,1757168947725,-500.0,0.00019999,2]
[383899319,1757168947750,-500.0,0.00019999,2]
[383899320,1757168947774,-500.0,0.00019999,2]
[383899321,1757168947800,-500.0,0.00019999,2]
[383899322,1757168947822,-256.39424465,0.00019999,2]
[383899323,1757168947846,-500.0,0.00019999,2]
[383899324,1757168947869,-500.0,0.00019999,2]
[383899325,1757168947894,-500.0,0.00019999,2]
[383899326,1757168947919,-500.0,0.00019999,2]
[383899327,1757168947942,-500.0,0.00019999,2]
[383899328,1757168947966,-500.0,0.00019999,2]
[383899329,1757168947990,-500.0,0.00019999,2]
[383899330,1757168948015,-500.0,0.00019999,2]
[383899331,1757168948038,-500.0,0.00019999,2]
[383899332,1757168948062,-500.0,0.00019999,2]
[383899333,1757168948085,-500.0,0.00019999,2]
[383899334,1757168948108,-500.0,0.00019999,2]
[383899335,1757168948132,-500.0,0.00019999,2]
[383899336,1757168948158,-29.05081355,0.00019999,2]
[383899337,1757168948199,900.0,0.000199,7]
[383899338,1757168949123,-500.0,0.00019973,2]
[383899339,1757168949145,-500.0,0.00019973,2]
[383899340,1757168949166,-1000.0,0.00019999,2]
[383899341,1757168949190,-375.83104236,0.00019999,2]
[383899342,1757168953079,-95.11814409,0.00019999,2]
[383899343,1757168953103,-500.0,0.00019999,2]
[383899344,1757168953126,-500.0,0.00019999,2]
[383899345,1757168953150,-279.61898177,0.00019999,2]
[383899346,1757168953175,-431.65991505,0.00019999,2]
[383899347,1757168954545,-68.34008495,0.00019999,2]
[383899348,1757168954573,-500.0,0.00019999,2]
[383899349,1757168954602,-500.0,0.00019999,2]
[383899350,1757168954633,-200.0,0.00019999,2]
[383899351,1757168954664,-500.0,0.00019999,2]
[383899352,1757168954694,-500.0,0.00019999,2]
[383899353,1757168954725,-500.0,0.00019999,2]
[383899354,1757168954754,-500.0,0.00019999,2]
[383899355,1757168954780,-500.0,0.00019999,2]
[383899356,1757168954808,-163.64650858,0.00019999,2]
[383899357,1757168954838,-500.0,0.00019999,2]
[383899358,1757168954867,-500.0,0.00019999,2]
[383899359,1757168954895,-12510.83651764,0.0002,2]
[383899360,1757168956103,-4799.40986,0.0002,2]
[383899361,1757168963134,-1744.0,0.000199,2]
[383899363,1757168967045,250.0,0.00015,2]
[383899367,1757168974097,-27342.54101306,0.000199,2]
[383899368,1757168974119,-3597.03114694,0.000199,2]
[383899373,1757168991318,1232.29718615,0.0003013,120]
[383899374,1757168991374,-155.02969411,0.000197,2]
[383899375,1757168996506,-585.54289084,0.000197,2]
[383899376,1757169000258,-196.53950787,0.000197,2]
[383899377,1757169002883,4000.0,0.0002,4]
[383899379,1757169006227,-270.91167764,0.00019699,2]
[383899380,1757169008265,-29.08832236,0.00019699,2]
[383899381,1757169008289,-191.18908454,0.00019699,2]
[383899382,1757169009996,-173.3407199,0.00019699,2]
[383899383,1757169013561,-219.25102811,0.00019699,2]
[383899385,1757169015838,-202.90094239,0.00019699,2]
[383899387,1757169020834,-388.62043284,0.00019699,2]
[383899388,1757169022710,-24.69779222,0.00019699,2]
[383899389,1757169022735,-300.0,0.00019699,2]
[383899390,1757169022760,-23.64776804,0.00019699,2]
[383899391,1757169029631,-203.25048679,0.00019699,2]
[383899401,1757169031721,-73.10174517,0.00019699,2]
[383899402,1757169031730,-16097.72248175,0.000197,2]
[383899403,1757169031740,-604.3580738,0.000199,2]
[383899404,1757169031750,-160.66464166,0.000199,2]
[383899405,1757169031759,-1000.0,0.00019901,2]
[383899406,1757169031769,-8792.1507949,0.00019903,2]
[383899407,1757169031794,-20294.3902181,0.00019903,2]
[383899408,1757169031804,-10962.58123698,0.00019905,2]
[383899409,1757169031815,-252.51058675,0.00019905,2]